bitfinex/quotes_BTCUSD_20251021
["timestamp","ask_amount","ask_price","bid_price","bid_amount"]
[1761022039714,0.36782333,108100.0,108090.0,4.977e-05]
[1761022041566,0.36782333,108100.0,108090.0,0.18508076]
[1761022041780,0.71872844,108100.0,108090.0,4.977e-05]
[1761022041990,0.45764234,108100.0,108090.0,4.977e-05]
[1761022042392,0.64265621,108100.0,108090.0,4.977e-05]
[1761022043473,0.18503672,108090.0,108070.0,0.18506451]
[1761022043630,0.00460752,108080.0,108070.0,0.19383028]
[1761022044444,0.47503433,108090.0,108080.0,0.18504811]
[1761022044684,0.47042681,108090.0,108070.0,0.18521367]
[1761022044888,0.00460752,108080.0,108070.0,0.18521367]
[1761022045571,0.34,108090.0,108080.0,0.20355292]
[1761022045843,0.34,108090.0,108080.0,0.18504811]
[1761022046038,0.01277452,108120.0,108100.0,0.18500866]
[1761022046239,0.22520105,108120.0,108100.0,0.18500866]
[1761022046364,0.40730849,108120.0,108100.0,0.18500866]
[1761022046572,0.34,108110.0,108100.0,0.18500866]
[1761022047194,0.22232728,108120.0,108100.0,0.18501387]
[1761022047484,0.34,108110.0,108100.0,0.18501387]
[1761022049556,0.34,108110.0,108070.0,0.18521367]
[1761022049557,0.18504811,108080.0,108070.0,0.00014916]
[1761022049762,3.75269193,108080.0,108070.0,0.00014916]
[1761022049962,3.7988742,108080.0,108070.0,0.00014916]
[1761022050462,3.80820364,108080.0,108070.0,0.00014916]
[1761022050683,0.52509949,108050.0,108040.0,0.17492106]
[1761022050886,0.52524863,108050.0,108040.0,0.18354751]
[1761022051084,0.36539883,108050.0,108040.0,0.17492106]
[1761022051288,0.18524863,108050.0,108040.0,0.17492106]
[1761022051495,0.27506764,108050.0,108040.0,0.17492106]
[1761022051857,0.2874324,108050.0,108040.0,0.17492106]
[1761022053808,0.2874324,108050.0,108040.0,0.17432106]
[1761022055438,0.6274324,108050.0,108040.0,0.17432106]
[1761022056786,0.64194805,108050.0,108040.0,0.17432106]
[1761022057067,0.6274324,108050.0,108040.0,0.17432106]
[1761022057528,0.6274324,108050.0,108040.0,0.14632106]
[1761022057938,3.76343368,108050.0,108040.0,0.14632106]
[1761022058234,3.6274324,108050.0,108040.0,0.14632106]
[1761022058401,3.65527709,108050.0,108040.0,0.14632106]
[1761022059229,3.65727709,108050.0,108040.0,0.14632106]
[1761022059440,3.69345937,108050.0,108040.0,0.14632106]
[1761022060016,3.70797765,108050.0,108040.0,0.14632106]
[1761022060216,3.80779665,108050.0,108040.0,0.14632106]
[1761022061088,3.79779666,108050.0,108040.0,0.14632106]
[1761022061291,3.8361194,108050.0,108040.0,1e-08]
[1761022061478,3.81779664,108050.0,108040.0,1e-08]
[1761022062283,3.84530794,108050.0,108040.0,1e-08]
[1761022062614,3.84430794,108050.0,108040.0,1e-08]
[1761022062822,3.84830794,108050.0,108040.0,1e-08]
[1761022064369,3.69379535,108050.0,108040.0,1e-08]
[1761022064551,3.34379536,108050.0,108040.0,1e-08]
[1761022064758,3.52511662,108040.0,108030.0,0.11398899]
[1761022064930,3.27493563,108040.0,108030.0,0.11398899]
[1761022065331,3.31111791,108040.0,108030.0,0.11398899]
[1761022065529,3.65111791,108040.0,108030.0,0.11398899]
[1761022065758,3.61493563,108040.0,108030.0,0.11398899]
[1761022065935,3.73573563,108040.0,108030.0,0.11398899]
[1761022066604,3.77191791,108040.0,108030.0,0.11398899]
[1761022067205,3.84209081,108040.0,108030.0,0.11398899]
[1761022067407,3.8520908,108040.0,108030.0,0.11398899]
[1761022067587,3.86209079,108040.0,108030.0,0.11398899]
[1761022067808,3.86309079,108040.0,108030.0,0.11398899]
[1761022068037,3.86309079,108040.0,108030.0,1e-08]
[1761022068246,3.86109079,108040.0,108030.0,1e-08]
[1761022068475,3.86309079,108040.0,108030.0,1e-08]
[1761022068672,3.92077509,108040.0,108030.0,1e-08]
[1761022068897,3.7332908,108040.0,108030.0,1e-08]
[1761022069111,3.86217079,108040.0,108030.0,1e-08]
[1761022069511,3.86417079,108040.0,108030.0,1e-08]
[1761022069727,3.8541708,108040.0,108030.0,1e-08]
[1761022069931,3.86417079,108040.0,108030.0,1e-08]
[1761022070601,3.79399789,108040.0,108030.0,1e-08]
[1761022071065,3.79299789,108040.0,108030.0,1e-08]
[1761022071282,3.81968327,108040.0,108030.0,1e-08]
[1761022071946,3.81968327,108040.0,108010.0,0.17711342]
[1761022071947,3.53515088,108020.0,108010.0,0.17711342]
[1761022072169,3.75480988,108020.0,108010.0,0.17711342]
[1761022072406,3.8346289,108020.0,108010.0,0.17711342]
[1761022072612,0.5713503,108010.0,108000.0,10.91331453]
[1761022072788,3.6711693,108010.0,108000.0,10.91331453]
[1761022073126,3.68861531,108010.0,108000.0,10.91331453]
[1761022073343,3.80402382,108010.0,108000.0,10.91331453]
[1761022073758,3.80417282,108010.0,108000.0,10.91331453]
[1761022074178,3.71435381,108010.0,108000.0,10.91331453]
[1761022074375,3.80608251,108010.0,108000.0,10.91331453]
[1761022074593,3.80352854,108010.0,108000.0,10.91331453]
[1761022074784,3.79808252,108010.0,108000.0,10.91331453]
[1761022075241,3.80708251,108010.0,108000.0,10.91331453]
[1761022075376,3.89590152,108010.0,108000.0,10.91331453]
[1761022075564,3.92541282,108010.0,108000.0,10.91331453]
[1761022075759,3.91641283,108010.0,108000.0,10.91331453]
[1761022076207,3.92641282,108010.0,108000.0,10.91331453]
[1761022076852,3.95427083,108010.0,108000.0,10.91331453]
[1761022077261,3.95327083,108010.0,108000.0,10.91331453]
[1761022077463,3.95227083,108010.0,108000.0,10.91331453]
[1761022077634,3.86245182,108010.0,108000.0,10.91331453]
[1761022077836,3.86445182,108010.0,108000.0,10.91331453]
[1761022078005,3.85545183,108010.0,108000.0,10.91331453]
[1761022078207,3.86345182,108010.0,108000.0,10.91331453]
[1761022078410,3.86245182,108010.0,108000.0,10.91331453]
[1761022078650,3.92575953,108010.0,108000.0,10.91331453]
[1761022078824,3.95527083,108010.0,108000.0,10.84431453]
[1761022079025,3.94227084,108010.0,108000.0,10.84431453]
[1761022079466,3.95327083,108010.0,108000.0,10.84431453]
[1761022080452,3.91123532,108010.0,108000.0,10.27227791]
[1761022080647,3.93774662,108010.0,108000.0,10.14790454]
[1761022080849,3.93774662,108010.0,108000.0,9.92303324]
[1761022081072,3.91223532,108010.0,108000.0,9.92303324]
[1761022081274,3.70217631,108010.0,108000.0,9.92303324]
[1761022081559,3.30399405,108010.0,108000.0,9.92303324]
[1761022081763,3.42535405,108010.0,108000.0,9.92303324]
[1761022082002,3.76535405,108010.0,108000.0,9.92303324]
[1761022082219,3.39949604,108010.0,108000.0,9.92303324]
[1761022082410,3.39749604,108010.0,108000.0,9.92303324]
[1761022082615,3.20223325,108010.0,108000.0,9.92303324]
[1761022082758,3.39949604,108010.0,108000.0,9.92303324]
[1761022082969,3.21432801,108010.0,108000.0,9.92303324]
[1761022083197,0.09396801,108010.0,108000.0,9.92303324]
[1761022083399,0.21693553,108010.0,108000.0,10.10821842]
[1761022083622,0.122509,108010.0,108000.0,10.10821842]
[1761022083860,0.12811652,108010.0,108000.0,10.10821842]
[1761022084065,0.121509,108010.0,108000.0,10.10821842]
[1761022084240,0.002149,108010.0,108000.0,10.10821842]
[1761022085075,0.001149,108010.0,108000.0,10.10821842]
[1761022085245,0.000149,108010.0,108000.0,10.19803743]
[1761022086282,0.000149,108010.0,108000.0,9.92303324]
[1761022086487,0.52992455,108010.0,108000.0,9.92303324]
[1761022086670,3.61513604,108010.0,108000.0,9.92303324]
[1761022087881,3.42996801,108010.0,108000.0,9.92303324]
[1761022088085,0.340149,108010.0,108000.0,10.10821842]
[1761022089396,0.000149,108010.0,108000.0,10.22857842]
[1761022090824,0.000149,108010.0,108000.0,10.31839743]
[1761022091077,0.000149,108010.0,108000.0,9.85803324]
[1761022091277,0.000149,108010.0,108000.0,10.16353842]
[1761022091455,0.000149,108010.0,108000.0,9.85803324]
[1761022091456,0.18531703,108010.0,108000.0,9.85803324]
[1761022091660,0.000149,108010.0,108000.0,10.16349842]
[1761022091871,0.000149,108010.0,108000.0,9.85803324]
[1761022091872,0.40002356,108010.0,108000.0,9.85803324]
[1761022092027,3.77537721,108010.0,108000.0,9.85803324]
[1761022092236,3.73541604,108010.0,108000.0,9.85803324]
[1761022092872,3.77159832,108010.0,108000.0,9.85803324]
[1761022093882,3.77259832,108010.0,108000.0,9.85803324]
[1761022094264,3.43096801,108010.0,108000.0,9.85803324]
[1761022094467,0.55124801,108010.0,108000.0,9.85803324]
[1761022094675,3.73641604,108010.0,108000.0,9.85803324]
[1761022094919,3.73741604,108010.0,108000.0,9.85803324]
[1761022095284,3.73641604,108010.0,108000.0,9.85803324]
[1761022095859,3.73741604,108010.0,108000.0,9.85803324]
[1761022096092,3.73641604,108010.0,108000.0,9.85803324]
[1761022098346,3.61613604,108010.0,108000.0,9.78903324]
[1761022098572,0.09096801,108010.0,108000.0,9.78903324]
[1761022098803,0.40098356,108010.0,108000.0,9.78903324]
[1761022099019,3.39637604,108010.0,108000.0,9.78903324]
[1761022099236,3.73637604,108010.0,108000.0,9.78903324]
[1761022100570,3.86237733,108010.0,108000.0,9.78903324]
[1761022101005,3.78708351,108010.0,108000.0,9.78903324]
[1761022101252,3.78608351,108010.0,108000.0,9.78903324]
[1761022101479,3.78708351,108010.0,108000.0,9.78903324]
[1761022102153,3.78608351,108010.0,108000.0,9.78903324]
[1761022102395,3.1044932,108010.0,108000.0,9.78903324]
[1761022102616,0.1044932,108010.0,108000.0,9.97421842]
[1761022102836,0.14056171,108010.0,108000.0,9.97421842]
[1761022103044,0.13595419,108010.0,108000.0,9.97421842]
[1761022103253,0.32472974,108010.0,108000.0,9.78903324]
[1761022103452,0.41194123,108010.0,108000.0,9.78903324]
[1761022103930,3.40994123,108010.0,108000.0,9.78903324]
[1761022104293,0.2257732,108010.0,108000.0,9.78903324]
[1761022104496,0.01567419,108010.0,108000.0,9.97421842]
[1761022104698,0.47595419,108010.0,108000.0,9.97421842]
[1761022104907,0.35567419,108010.0,108000.0,9.97421842]
[1761022105121,0.01567419,108010.0,108000.0,9.90521842]
[1761022105325,0.001149,108010.0,108000.0,10.02545842]
[1761022106438,0.000149,108010.0,108000.0,10.02545842]
[1761022106848,0.000149,108010.0,108000.0,9.72003324]
[1761022107053,0.00475652,108010.0,108000.0,9.72003324]
[1761022107414,0.00475652,108010.0,108000.0,9.90521842]
[1761022107621,0.18992455,108010.0,108000.0,9.72003324]
[1761022107815,0.18531703,108010.0,108000.0,9.72003324]
[1761022108016,0.000149,108010.0,108000.0,9.90521842]
[1761022108817,0.00475652,108010.0,108000.0,9.90521842]
[1761022109026,0.18992455,108010.0,108000.0,9.72003324]
[1761022109225,0.18531703,108010.0,108000.0,9.72003324]
[1761022109834,0.000149,108010.0,108000.0,9.90521842]
[1761022110049,0.00475652,108010.0,108000.0,9.90521842]
[1761022110280,0.000149,108010.0,108000.0,9.90521842]
[1761022111505,0.18992455,108010.0,108000.0,9.72003324]
[1761022111707,0.18531703,108010.0,108000.0,9.90521842]
[1761022111907,0.18531703,108010.0,108000.0,9.72003324]
[1761022112291,0.18531703,108010.0,108000.0,9.66807993]
[1761022112497,0.18531703,108010.0,108000.0,9.65103324]
[1761022112740,0.000149,108010.0,108000.0,9.83621842]
[1761022113087,0.000149,108010.0,108000.0,10.50992316]
[1761022113377,0.000149,108010.0,108000.0,10.04623743]
[1761022117394,0.19433647,108060.0,108000.0,10.04623743]
[1761022117395,0.68504816,108080.0,108050.0,0.18509462]
[1761022117618,0.2794924,108070.0,108050.0,0.18509462]
[1761022117832,3.0,108060.0,108050.0,0.18509462]
[1761022118996,0.13471832,108070.0,108060.0,0.18508236]
[1761022119201,0.01451832,108070.0,108060.0,0.18508236]
[1761022119413,0.01451832,108070.0,108060.0,0.12708236]
[1761022119631,0.35451832,108070.0,108060.0,0.14559059]
[1761022120218,0.35451832,108070.0,108060.0,0.20359059]
[1761022120415,3.0,108060.0,108050.0,0.18509462]
[1761022120665,3.18508236,108060.0,108040.0,0.19435093]
[1761022120833,3.18508236,108060.0,108040.0,0.18511144]
[1761022120834,0.00460752,108050.0,108040.0,0.18511144]
[1761022121569,0.61952602,108050.0,108030.0,0.18513124]
[1761022121759,0.6149185,108050.0,108040.0,0.18511662]
[1761022121974,0.6149185,108050.0,108030.0,0.30521124]
[1761022122500,0.34,108050.0,108040.0,0.18511662]
[1761022122910,0.20883681,108070.0,108050.0,0.18508666]
[1761022122911,0.54883681,108070.0,108050.0,0.18508666]
[1761022123114,0.12468752,108060.0,108050.0,0.18508666]
[1761022123324,0.34,108050.0,108040.0,0.19437245]
[1761022124578,0.52509949,108050.0,108030.0,0.30521124]
[1761022124977,0.52511662,108040.0,108030.0,0.30521375]
[1761022125343,0.34,108040.0,108030.0,0.30521375]
[1761022125674,0.34,108040.0,108030.0,0.18513375]
[1761022126039,0.34,108040.0,108030.0,0.18563092]
[1761022126455,0.52511662,108040.0,108030.0,0.18563092]
[1761022126831,0.52511662,108040.0,108030.0,0.00049717]
[1761022127072,0.52511662,108040.0,108030.0,0.01901054]
[1761022127283,0.52511662,108040.0,108030.0,0.18563092]
[1761022128122,0.35451964,108040.0,108030.0,0.18563092]
[1761022128457,0.53963626,108040.0,108030.0,0.18563092]
[1761022128631,0.53963626,108040.0,108030.0,0.00049717]
[1761022128838,0.35451964,108040.0,108030.0,0.20414429]
[1761022129046,0.35451964,108040.0,108030.0,0.18563092]
[1761022131329,0.34,108040.0,108030.0,0.18563092]
[1761022135353,0.34,108040.0,108030.0,0.12021717]
[1761022135558,0.34,108040.0,108030.0,0.32386429]
[1761022135780,0.34,108040.0,108030.0,0.30635092]
[1761022137635,0.33975472,108040.0,108030.0,0.30635092]
[1761022138175,0.11972,108060.0,108050.0,0.18509949]
[1761022138380,0.30940988,108060.0,108040.0,0.18510166]
[1761022138548,0.30480236,108060.0,108040.0,0.18510166]
[1761022138754,0.18970701,108050.0,108030.0,0.3156076]
[1761022138954,0.18509949,108050.0,108040.0,0.18511662]
[1761022139163,0.18509949,108050.0,108030.0,0.3146076]
[1761022139499,0.18509949,108050.0,108030.0,0.3144476]
[1761022139656,0.52509949,108050.0,108040.0,0.18511662]
[1761022141343,0.18511662,108040.0,108030.0,0.00049717]
[1761022141608,0.52509949,108050.0,108040.0,0.18511662]
[1761022142384,0.34,108050.0,108040.0,0.18511662]
[1761022143586,0.34,108050.0,108040.0,0.30455662]
[1761022144462,0.52509949,108050.0,108040.0,0.11944]
[1761022144669,0.52509949,108050.0,108040.0,0.18511662]
[1761022144885,0.18511662,108040.0,108030.0,0.00049717]
[1761022145054,0.52511662,108040.0,108030.0,0.00049717]
[1761022145437,0.61493563,108040.0,108030.0,0.00049717]
[1761022145839,3.61493563,108040.0,108030.0,0.00049717]
[1761022146577,3.61493563,108040.0,108020.0,0.16664796]
[1761022146780,0.34,108020.0,108010.0,0.19442597]
[1761022146982,0.34,108020.0,108010.0,0.21294277]
[1761022147768,0.34,108020.0,108010.0,0.19442597]
[1761022147994,0.35181835,108020.0,108010.0,0.19442597]
[1761022148541,0.00049806,108040.0,108020.0,0.18513463]
[1761022148748,0.00049806,108040.0,108030.0,0.18513375]
[1761022148948,0.00149806,108040.0,108030.0,0.29346613]
[1761022149087,0.00149806,108040.0,108030.0,0.27495276]
[1761022149690,0.00049806,108040.0,108030.0,0.27495276]
[1761022149888,0.00049806,108040.0,108030.0,0.39439276]
[1761022150676,0.00049806,108040.0,108030.0,1.10658706]
[1761022150879,0.00049806,108040.0,108030.0,0.39439276]
[1761022151954,0.00049806,108040.0,108030.0,0.39539276]
[1761022152166,0.00049806,108040.0,108030.0,0.18613375]
[1761022152574,0.00049806,108040.0,108030.0,0.18713375]
[1761022153115,0.00049806,108040.0,108030.0,0.18613375]
[1761022154070,0.00049806,108040.0,108030.0,0.27495276]
[1761022154555,0.00049806,108040.0,108030.0,0.27595276]
[1761022154998,0.00049806,108040.0,108030.0,0.24595276]
[1761022156319,0.00049806,108040.0,108030.0,0.15613375]
[1761022156554,0.00049806,108040.0,108030.0,0.17464712]
[1761022156789,0.6494622,108040.0,108030.0,0.001]
[1761022157017,3.73467369,108040.0,108030.0,0.001]
[1761022157158,3.7297381,108040.0,108030.0,0.001]
[1761022157850,0.18515873,108020.0,108000.0,9.65103324]
[1761022158051,0.18516803,108010.0,108000.0,9.83621842]
[1761022158256,0.30439873,108020.0,108000.0,9.83621842]
[1761022159595,0.30439873,108020.0,108010.0,0.18516803]
[1761022159596,0.45924,108020.0,108010.0,0.18516803]
[1761022160014,0.64439089,108020.0,108010.0,0.18516803]
[1761022161987,0.64439089,108020.0,108010.0,0.15216803]
[1761022163025,0.64439089,108020.0,108000.0,9.83621819]
[1761022163585,3.0,108040.0,108030.0,0.18512764]
[1761022163988,0.45916,108040.0,108030.0,0.18512764]
[1761022164169,0.45916,108040.0,108020.0,0.18513219]
[1761022164170,0.34,108040.0,108020.0,0.18513219]
[1761022164315,0.11916,108040.0,108030.0,0.18513375]
[1761022164512,0.12376752,108040.0,108030.0,0.18513375]
[1761022164718,0.11916,108040.0,108030.0,0.18513375]
[1761022165034,0.30888414,108040.0,108030.0,0.18513375]
[1761022165241,0.30427662,108040.0,108030.0,0.18513375]
[1761022165570,0.45916,108040.0,108030.0,0.18513375]
[1761022165920,0.46016,108040.0,108030.0,0.18513375]
[1761022166518,0.45916,108040.0,108030.0,0.18513375]
[1761022167224,0.34,108040.0,108030.0,0.18513375]
[1761022167421,0.45912,108040.0,108030.0,0.18513375]
[1761022168221,0.64423662,108040.0,108030.0,0.18513375]
[1761022168561,0.45912,108040.0,108030.0,0.18513375]
[1761022169137,0.45912,108040.0,108030.0,0.11613375]
[1761022169298,0.34,108040.0,108030.0,0.13464712]
[1761022169515,0.01121258,108060.0,108050.0,0.18509949]
[1761022169735,0.00014936,108060.0,108050.0,0.18509949]
[1761022170930,0.00014936,108060.0,108050.0,0.9871128]
[1761022171130,0.00014936,108060.0,108050.0,0.2749185]
[1761022171790,0.00014936,108060.0,108050.0,0.18509949]
[1761022171985,0.00014936,108060.0,108050.0,0.18609949]
[1761022175550,0.30419172,108060.0,108050.0,0.001]
[1761022175781,0.30419172,108060.0,108050.0,0.01950994]
[1761022176226,0.30419172,108060.0,108050.0,0.17360943]
[1761022176437,0.30419172,108060.0,108050.0,0.01058391]
[1761022176926,0.64419172,108060.0,108050.0,0.01058391]
[1761022177145,0.34014936,108060.0,108050.0,0.20360943]
[1761022177388,0.00014936,108060.0,108050.0,0.18509949]
[1761022178714,0.00014936,108060.0,108050.0,0.2749185]
[1761022178926,0.00014936,108060.0,108050.0,0.3938385]
[1761022180035,0.18523172,108060.0,108050.0,0.11892]
[1761022180264,0.18523172,108060.0,108050.0,0.20360943]
[1761022180488,0.18523172,108060.0,108050.0,0.18509949]
[1761022181556,0.18523172,108060.0,108040.0,0.30402184]
[1761022181788,0.18523172,108060.0,108040.0,0.39384085]
[1761022182080,0.18523172,108060.0,108030.0,0.12539043]
[1761022182081,0.18509949,108050.0,108030.0,0.12539043]
[1761022182295,0.31336583,108060.0,108040.0,0.1963913]
[1761022182296,0.00014936,108060.0,108040.0,0.1963913]
[1761022182515,0.14214682,108060.0,108050.0,0.18509949]
[1761022182966,0.32722918,108060.0,108050.0,0.18509949]
[1761022183175,0.30411172,108060.0,108050.0,0.18509949]
[1761022183388,0.30411172,108060.0,108050.0,0.16709949]
[1761022183616,3.39393073,108060.0,108050.0,0.01850994]
[1761022183855,0.34,108040.0,108030.0,0.18513375]
[1761022184296,0.34,108040.0,108010.0,0.31326285]
[1761022184297,0.52511662,108040.0,108010.0,0.11884]
[1761022184511,0.52511662,108040.0,108020.0,0.28659979]
[1761022184745,0.52511662,108040.0,108030.0,0.18513375]
[1761022186957,0.34,108040.0,108030.0,0.18513375]
[1761022187978,0.52511662,108040.0,108030.0,0.18513375]
[1761022188678,0.34,108040.0,108030.0,0.18513375]
[1761022189117,0.52512058,108040.0,108020.0,0.08981901]
[1761022189316,0.64424058,108040.0,108020.0,0.40627898]
[1761022189437,0.64424058,108040.0,108020.0,0.39408969]
[1761022190267,0.64424058,108040.0,108020.0,0.30427068]
[1761022191398,0.64424058,108040.0,108030.0,0.18513375]
[1761022191607,0.64424058,108040.0,108020.0,0.18515068]
[1761022191973,0.64424058,108040.0,108030.0,0.01851337]
[1761022192402,0.64424058,108040.0,108030.0,0.20364712]
[1761022192617,0.45912,108040.0,108030.0,0.18513375]
[1761022193035,0.64423662,108040.0,108030.0,0.18513375]
[1761022193237,0.52511662,108040.0,108030.0,0.18513375]
[1761022193647,0.52511662,108040.0,108020.0,0.18515068]
[1761022193850,0.52511662,108040.0,108030.0,0.01851337]
[1761022194085,0.53963512,108040.0,108030.0,0.01851337]
[1761022195608,0.52513375,108030.0,108020.0,0.01851508]
[1761022195810,0.52513375,108030.0,108020.0,0.20366597]
[1761022196023,0.52513375,108030.0,108020.0,0.18515089]
[1761022196382,0.53672728,108030.0,108020.0,0.18515089]
[1761022197189,0.35159353,108030.0,108020.0,0.18515089]
[1761022197389,0.35159353,108030.0,108020.0,0.13215089]
[1761022197596,0.35159353,108030.0,108020.0,0.15066597]
[1761022197859,0.53672728,108030.0,108020.0,0.15066597]
[1761022198062,0.53672728,108030.0,108020.0,0.13215089]
[1761022198804,0.35159353,108030.0,108020.0,0.15066597]
[1761022198998,0.53672728,108030.0,108020.0,0.15066597]
[1761022199204,0.35159353,108030.0,108020.0,0.15066597]
[1761022200393,0.53672728,108030.0,108020.0,0.15066597]
[1761022200599,0.19672728,108030.0,108020.0,0.01851508]
[1761022200838,0.19672728,108030.0,108020.0,0.20366597]
[1761022201045,0.01159353,108030.0,108020.0,0.18515089]
[1761022201262,0.0145185,108040.0,108030.0,0.18513375]
[1761022201728,0.0113073,108050.0,108040.0,0.18511662]
[1761022201920,0.00014936,108060.0,108050.0,0.18509949]
[1761022202076,0.00014936,108060.0,108040.0,0.27493563]
[1761022202077,0.18523172,108060.0,108040.0,0.27493563]
[1761022202289,0.00014936,108060.0,108050.0,0.19609057]
[1761022202496,0.00014936,108060.0,108050.0,0.18509949]
[1761022203747,0.18523172,108060.0,108040.0,0.27493486]
[1761022203958,0.00014936,108060.0,108050.0,0.01850994]
[1761022204160,0.00014936,108060.0,108050.0,0.20360943]
[1761022204367,0.34014936,108060.0,108050.0,0.18509949]
[1761022204587,0.34014936,108060.0,108050.0,0.11609949]
[1761022204821,0.34014936,108060.0,108050.0,0.12500004]
[1761022205024,0.34014936,108060.0,108050.0,0.13460943]
[1761022205433,0.00014936,108060.0,108050.0,0.13460943]
[1761022205646,0.00014936,108060.0,108050.0,0.22442844]
[1761022205855,0.00014936,108060.0,108050.0,0.2059185]
[1761022206507,0.34014936,108060.0,108050.0,0.3247585]
[1761022206920,0.00014936,108060.0,108050.0,0.3247585]
[1761022207359,0.01174888,108060.0,108050.0,0.3247585]
[1761022207569,0.00014936,108060.0,108050.0,0.3247585]
[1761022208899,0.18523172,108060.0,108040.0,0.18511585]
[1761022209114,0.18523172,108060.0,108050.0,0.1974362]
[1761022209315,0.00014936,108060.0,108050.0,0.18509949]
[1761022210844,0.18523172,108060.0,108050.0,0.18509949]
[1761022211423,0.19637894,108060.0,108050.0,0.18509949]
[1761022211650,0.19637894,108060.0,108040.0,0.34473486]
[1761022211853,0.19637894,108060.0,108050.0,0.20360943]
[1761022212061,0.19637894,108060.0,108050.0,0.18509949]
[1761022212445,0.19637894,108060.0,108040.0,0.34473486]
[1761022212646,0.19637894,108060.0,108050.0,0.18509949]
[1761022212853,0.31505894,108060.0,108040.0,0.22593486]
[1761022213049,0.31505894,108060.0,108040.0,0.34461486]
[1761022213476,0.12997658,108060.0,108050.0,0.18509949]
[1761022213712,0.31505894,108060.0,108040.0,0.34461486]
[1761022213915,0.12997658,108060.0,108050.0,0.18509949]
[1761022214116,0.31505894,108060.0,108040.0,0.34461486]
[1761022214434,0.31505894,108060.0,108050.0,0.19538753]
[1761022214569,0.31505894,108060.0,108050.0,0.18509949]
[1761022214925,0.19637894,108060.0,108040.0,0.34461486]
[1761022215771,0.19637894,108060.0,108050.0,0.01850994]
[1761022216092,0.19637894,108060.0,108040.0,0.34461486]
[1761022216990,0.53637894,108060.0,108050.0,0.01850994]
[1761022217388,0.35129658,108060.0,108050.0,0.20360943]
[1761022217591,0.53637894,108060.0,108050.0,0.18509949]
[1761022218649,0.53637894,108060.0,108040.0,0.31761486]
[1761022218844,0.53637894,108060.0,108050.0,0.01850994]
[1761022220091,0.53637894,108060.0,108040.0,0.31761486]
[1761022221091,0.53637894,108060.0,108050.0,0.18509949]
[1761022221719,0.18509949,108050.0,108030.0,0.1851335]
[1761022221894,0.18511662,108040.0,108030.0,0.18513375]
[1761022222075,0.18511662,108040.0,108020.0,0.31292843]
[1761022222270,0.18511662,108040.0,108020.0,0.40274744]
[1761022223281,0.34,108040.0,108030.0,0.18513375]
[1761022223483,0.00014936,108060.0,108050.0,0.18509949]
[1761022227584,0.00014936,108060.0,108050.0,0.2749185]
[1761022230599,0.00014936,108060.0,108050.0,0.77434867]
[1761022231190,0.00014936,108060.0,108050.0,0.78536826]
[1761022232170,0.00014936,108060.0,108050.0,0.78636826]
[1761022236842,0.00014936,108060.0,108050.0,0.32312037]
[1761022237037,0.00014936,108060.0,108050.0,0.78636826]
[1761022238211,0.00014936,108060.0,108050.0,0.79636825]
[1761022238416,0.00014936,108060.0,108050.0,0.33312036]
[1761022238626,0.00014936,108060.0,108050.0,0.79636825]
[1761022239457,0.00014936,108060.0,108050.0,0.86430019]
[1761022240279,0.00014936,108060.0,108050.0,0.79636825]
[1761022240688,0.00014936,108060.0,108050.0,0.33312036]
[1761022240892,0.00014936,108060.0,108050.0,0.32312037]
[1761022241121,0.00014936,108060.0,108050.0,0.44160037]
[1761022241528,0.00014936,108060.0,108050.0,0.90484826]
[1761022241922,0.00014936,108060.0,108050.0,0.44160037]
[1761022242249,0.00014936,108060.0,108050.0,0.90484826]
[1761022242892,0.00014936,108060.0,108050.0,0.44160037]
[1761022243105,0.00014936,108060.0,108050.0,0.90484826]
[1761022247221,0.00014936,108060.0,108050.0,0.44160037]
[1761022247753,0.00014936,108060.0,108050.0,0.90484826]
[1761022249608,0.00014936,108060.0,108050.0,0.44160037]
[1761022249803,0.00014936,108060.0,108050.0,0.90484826]
[1761022251173,0.00014936,108060.0,108050.0,0.2759185]
[1761022251350,0.00014936,108060.0,108050.0,0.3943585]
[1761022252746,0.00014936,108060.0,108050.0,0.3933585]
[1761022254267,0.00014936,108060.0,108050.0,0.3943585]
[1761022258487,0.00014936,108060.0,108050.0,0.89382418]
[1761022260095,0.00014936,108060.0,108050.0,0.43054078]
[1761022261196,0.18523172,108060.0,108050.0,0.20925901]
[1761022261412,0.00014936,108060.0,108050.0,0.3943585]
[1761022269931,0.00014936,108060.0,108050.0,0.20925901]
[1761022270130,0.00014936,108060.0,108050.0,0.3943585]
[1761022275757,0.00014936,108060.0,108050.0,0.43054078]
[1761022276362,0.00014936,108060.0,108050.0,0.43050078]
[1761022276846,0.49739275,108080.0,108070.0,0.18506523]
[1761022277051,0.49748486,108080.0,108070.0,0.18506523]
[1761022277252,0.49748486,108080.0,108060.0,0.1850675]
[1761022277463,0.49748486,108080.0,108060.0,0.27488651]
[1761022278061,0.49748486,108080.0,108070.0,0.18506523]
[1761022280828,0.18514262,108080.0,108070.0,0.18506523]
[1761022281248,0.18514262,108080.0,108060.0,0.27488651]
[1761022281458,0.18514262,108080.0,108070.0,0.18506523]
[1761022282913,0.18514262,108080.0,108060.0,0.18508236]
[1761022284432,0.18514262,108080.0,108070.0,0.18506523]
[1761022284640,9.211e-05,108080.0,108070.0,0.18506523]
[1761022284847,0.02320957,108080.0,108070.0,0.18506523]
[1761022285051,0.20825768,108080.0,108070.0,0.18506523]
[1761022285266,0.18514022,108080.0,108070.0,0.18506523]
[1761022285477,9.211e-05,108080.0,108070.0,0.18506523]
[1761022285681,0.02320957,108080.0,108070.0,0.18506523]
[1761022285888,0.20825768,108080.0,108070.0,0.18506523]
[1761022286117,0.18514022,108080.0,108070.0,0.18506523]
[1761022287380,0.18514022,108080.0,108060.0,0.18508236]
[1761022287834,0.18514022,108080.0,108070.0,0.18506523]
[1761022289755,9.211e-05,108080.0,108070.0,0.18506523]
[1761022289970,0.02320957,108080.0,108070.0,0.18506523]
[1761022291090,0.36320957,108080.0,108070.0,0.18506523]
[1761022291360,9.211e-05,108080.0,108070.0,0.71104217]
[1761022291576,9.211e-05,108080.0,108070.0,0.80086118]
[1761022291829,9.211e-05,108080.0,108070.0,0.81158891]
[1761022293293,9.211e-05,108080.0,108070.0,0.81258891]
[1761022294117,9.211e-05,108080.0,108070.0,0.40497197]
[1761022294332,9.211e-05,108080.0,108070.0,0.81358891]
[1761022294791,9.211e-05,108080.0,108070.0,0.80186118]
[1761022295017,9.211e-05,108080.0,108070.0,0.39524424]
[1761022295269,9.211e-05,108080.0,108070.0,0.002]
[1761022295270,0.18514022,108080.0,108070.0,0.002]
[1761022295473,0.18514022,108080.0,108070.0,0.02050652]
[1761022295691,0.18514022,108080.0,108070.0,0.002]
[1761022295906,0.18514022,108080.0,108070.0,0.001]
[1761022296145,0.30350022,108080.0,108070.0,0.001]
[1761022296369,0.30350022,108080.0,108070.0,0.02050652]
[1761022296778,0.30350022,108080.0,108070.0,0.01950652]
[1761022296987,0.30350022,108080.0,108070.0,0.01850652]
[1761022297399,0.30350022,108080.0,108070.0,0.01950652]
[1761022297604,0.30350022,108080.0,108070.0,0.001]